fUST/lending_fUST_20250601
["ID","MTS","AMOUNT","RATE_DAILY","PERIOD"]
[363589005,1748777458049,-430.93573985,0.00021095,2]
[363589006,1748777458059,-2976.59,0.00021095,2]
[363589007,1748777458068,-564.38,0.00021095,2]
[363589008,1748777458078,-1884.21,0.00021095,2]
[363589009,1748777458087,-1092.73,0.00021095,2]
[363589010,1748777458097,-2299.95,0.00021095,2]
[363589011,1748777458106,-722.57,0.00021095,2]
[363589012,1748777458116,-430.0,0.00021095,2]
[363589013,1748777458126,-1226.7,0.00021095,2]
[363589014,1748777458135,-2672.42,0.00021095,2]
[363589015,1748777458145,-430.0,0.00021095,2]
[363589016,1748777458154,-806.49,0.00021095,2]
[363589017,1748777458164,-430.0,0.00021095,2]
[363589018,1748777458174,-430.0,0.00021095,2]
[363589019,1748777458183,-430.0,0.00021095,2]
[363589020,1748777458193,-430.0,0.00021095,2]
[363589021,1748777458203,-476.38,0.00021095,2]
[363589022,1748777458213,-430.0,0.00021095,2]
[363589023,1748777458223,-457.31,0.00021095,2]
[363589024,1748777458232,-430.0,0.00021095,2]
[363589025,1748777458242,-478.3,0.00021095,2]
[363589026,1748777458251,-1252.18,0.00021095,2]
[363589027,1748777458262,-748.12,0.00021095,2]
[363589028,1748777458272,-430.0,0.00021095,2]
[363589029,1748777458282,-1768.34,0.00021095,2]
[363589030,1748777458292,-476.87,0.00021095,2]
[363589031,1748777458301,-2721.71,0.00021095,2]
[363589032,1748777458311,-430.0,0.00021095,2]
[363589033,1748777458322,-548.26,0.00021095,2]
[363589034,1748777458332,-557.94,0.00021095,2]
[363589035,1748777458342,-1242.67,0.00021095,2]
[363589036,1748777458351,-444.76,0.00021095,2]
[363589037,1748777458361,-492.01,0.00021095,2]
[363589038,1748777458370,-2451.33,0.00021095,2]
[363589039,1748777458380,-555.41,0.00021095,2]
[363589040,1748777458391,-2910.97,0.00021095,2]
[363589041,1748777458401,-151.0,0.000211,4]
[363589042,1748777458411,-1667.84722348,0.0002121,4]
[363589043,1748777458503,-430.0,0.00021369,2]
[363589044,1748777458513,-1240.01,0.00021369,2]
[363589045,1748777458523,-151.0,0.00021369,2]
[363589046,1748777458536,-151.0,0.00021369,2]
[363589047,1748777458548,-492.83,0.00021369,2]
[363589048,1748777458558,-151.0,0.00021369,2]
[363589049,1748777458568,-3331.44,0.00021369,2]
[363589050,1748777458579,-151.0,0.00021369,2]
[363589051,1748777458589,-151.0,0.00021369,2]
[363589052,1748777458599,-2976.59,0.00021369,2]
[363589053,1748777458610,-151.0,0.00021369,2]
[363589054,1748777458620,-564.38,0.00021369,2]
[363589055,1748777458630,-1884.21,0.00021369,2]
[363589056,1748777458640,-1092.73,0.00021369,2]
[363589057,1748777458650,-2299.95,0.00021369,2]
[363589058,1748777458660,-433.191824,0.00021369,2]
[363589059,1748777458669,-433.191824,0.00021369,2]
[363589060,1748777458680,-722.57,0.00021369,2]
[363589061,1748777458690,-430.0,0.00021369,2]
[363589062,1748777458700,-1226.7,0.00021369,2]
[363589063,1748777458710,-2672.42,0.00021369,2]
[363589064,1748777458720,-430.0,0.00021369,2]
[363589065,1748777458730,-806.49,0.00021369,2]
[363589066,1748777458740,-430.0,0.00021369,2]
[363589067,1748777458750,-430.0,0.00021369,2]
[363589068,1748777458760,-430.0,0.00021369,2]
[363589069,1748777458771,-430.0,0.00021369,2]
[363589070,1748777458781,-476.38,0.00021369,2]
[363589071,1748777458791,-430.0,0.00021369,2]
[363589072,1748777458800,-457.31,0.00021369,2]
[363589073,1748777458811,-430.0,0.00021369,2]
[363589074,1748777458824,-478.3,0.00021369,2]
[363589075,1748777458835,-1252.18,0.00021369,2]
[363589076,1748777458846,-748.12,0.00021369,2]
[363589077,1748777458855,-430.0,0.00021369,2]
[363589078,1748777458865,-1768.34,0.00021369,2]
[363589079,1748777458881,-476.87,0.00021369,2]
[363589080,1748777458892,-2721.71,0.00021369,2]
[363589081,1748777458902,-430.0,0.00021369,2]
[363589082,1748777458912,-151.0,0.00021369,2]
[363589083,1748777458922,-151.0,0.00021369,2]
[363589084,1748777458933,-548.26,0.00021369,2]
[363589085,1748777458943,-557.94,0.00021369,2]
[363589086,1748777458954,-151.0,0.00021369,2]
[363589087,1748777458964,-1242.67,0.00021369,2]
[363589088,1748777458974,-444.76,0.00021369,2]
[363589089,1748777458984,-492.01,0.00021369,2]
[363589090,1748777458994,-2451.33,0.00021369,2]
[363589091,1748777459004,-555.41,0.00021369,2]
[363589092,1748777459014,-2910.97,0.00021369,2]
[363589093,1748777459024,-151.0,0.000214,4]
[363589094,1748777459034,-1667.84722348,0.00021417,5]
[363589095,1748777459044,-1667.84722348,0.00021624,5]
[363589096,1748777459053,-430.0,0.00021643,2]
[363589097,1748777459063,-1240.01,0.00021643,2]
[363589098,1748777459073,-492.83,0.00021643,2]
[363589099,1748777459083,-3331.44,0.00021643,2]
[363589100,1748777459093,-2976.59,0.00021643,2]
[363589101,1748777459104,-564.38,0.00021643,2]
[363589102,1748777459114,-1884.21,0.00021643,2]
[363589103,1748777459124,-1092.73,0.00021643,2]
[363589104,1748777459135,-2299.95,0.00021643,2]
[363589105,1748777459145,-722.57,0.00021643,2]
[363589106,1748777459156,-460.15,0.00021643,2]
[363589107,1748777459166,-1226.7,0.00021643,2]
[363589108,1748777459176,-2672.42,0.00021643,2]
[363589109,1748777459186,-430.0,0.00021643,2]
[363589110,1748777459196,-806.49,0.00021643,2]
[363589111,1748777459205,-430.0,0.00021643,2]
[363589112,1748777459215,-399.71,0.00021643,2]
[363589113,1748777459224,-430.0,0.00021643,2]
[363589114,1748777459234,-430.0,0.00021643,2]
[363589115,1748777459244,-476.38,0.00021643,2]
[363589116,1748777459254,-430.0,0.00021643,2]
[363589117,1748777459264,-457.31,0.00021643,2]
[363589118,1748777459273,-474.88,0.00021643,2]
[363589119,1748777459284,-478.3,0.00021643,2]
[363589120,1748777459294,-1252.18,0.00021643,2]
[363589121,1748777459304,-748.12,0.00021643,2]
[363589122,1748777459314,-430.0,0.00021643,2]
[363589123,1748777459324,-1768.34,0.00021643,2]
[363589124,1748777459334,-476.87,0.00021643,2]
[363589125,1748777459344,-2721.71,0.00021643,2]
[363589126,1748777459353,-430.0,0.00021643,2]
[363589127,1748777459363,-548.26,0.00021643,2]
[363589128,1748777459373,-557.94,0.00021643,2]
[363589129,1748777459383,-1242.67,0.00021643,2]
[363589130,1748777459393,-444.76,0.00021643,2]
[363589131,1748777459404,-492.01,0.00021643,2]
[363589132,1748777459414,-2451.33,0.00021643,2]
[363589133,1748777459424,-555.41,0.00021643,2]
[363589134,1748777459434,-2910.97,0.00021643,2]
[363589135,1748777459444,-151.0,0.000218,3]
[363589136,1748777459454,-1667.84722348,0.00021831,6]
[363589137,1748777459464,-2917.99549642,0.000219,2]
[363589138,1748777459473,-500.0,0.00021917,2]
[363589139,1748777459483,-448.87,0.00021917,2]
[363589140,1748777459493,-151.0,0.00021917,2]
[363589141,1748777459502,-151.0,0.00021917,2]
[363589142,1748777459512,-1240.01,0.00021917,2]
[363589143,1748777459522,-151.0,0.00021917,2]
[363589144,1748777459533,-492.83,0.00021917,2]
[363589145,1748777459546,-3331.44,0.00021917,2]
[363589146,1748777459556,-151.0,0.00021917,2]
[363589147,1748777459566,-2976.59,0.00021917,2]
[363589148,1748777459576,-151.0,0.00021917,2]
[363589149,1748777459586,-564.38,0.00021917,2]
[363589150,1748777459595,-1884.21,0.00021917,2]
[363589151,1748777459606,-1092.73,0.00021917,2]
[363589152,1748777459617,-2299.95,0.00021917,2]
[363589153,1748777459628,-722.57,0.00021917,2]
[363589154,1748777459639,-1226.7,0.00021917,2]
[363589155,1748777459650,-2672.42,0.00021917,2]
[363589156,1748777459660,-236.55,0.00021917,2]
[363589157,1748777459669,-806.49,0.00021917,2]
[363589158,1748777459679,-273.0,0.00021917,2]
[363589159,1748777459688,-430.0,0.00021917,2]
[363589160,1748777459697,-365.74,0.00021917,2]
[363589161,1748777459706,-476.38,0.00021917,2]
[363589162,1748777459717,-430.0,0.00021917,2]
[363589163,1748777459725,-457.31,0.00021917,2]
[363589164,1748777459735,-478.3,0.00021917,2]
[363589165,1748777459743,-1252.18,0.00021917,2]
[363589166,1748777459755,-748.12,0.00021917,2]
[363589167,1748777459764,-568.46,0.00021917,2]
[363589168,1748777459772,-1768.34,0.00021917,2]
[363589169,1748777459779,-476.87,0.00021917,2]
[363589170,1748777459786,-2721.71,0.00021917,2]
[363589171,1748777459794,-151.0,0.00021917,2]
[363589172,1748777459801,-430.0,0.00021917,2]
[363589173,1748777459808,-548.26,0.00021917,2]
[363589174,1748777459880,-557.94,0.00021917,2]
[363589175,1748777459889,-1242.67,0.00021917,2]
[363589176,1748777459900,-444.76,0.00021917,2]
[363589177,1748777459910,-492.01,0.00021917,2]
[363589178,1748777459920,-2451.33,0.00021917,2]
[363589179,1748777459929,-555.41,0.00021917,2]
[363589180,1748777459939,-2910.97,0.00021917,2]
[363589181,1748777459949,-150.0,0.00021973,2]
[363589182,1748777459959,-166.0,0.00022,2]
[363589183,1748777459969,-166.0,0.00022,2]
[363589184,1748777459978,-173.0,0.00022,2]
[363589185,1748777459987,-622.64,0.00022,7]
[363589186,1748777459997,-140873.59,0.00022,7]
[363589187,1748777460007,-151.0,0.00022,7]
[363589188,1748777460016,-151.0,0.00022,7]
[363589189,1748777460026,-151.0,0.00022,7]
[363589190,1748777460036,-842.5625,0.00022,7]
[363589191,1748777460047,-1667.84722348,0.00022038,6]
[363589192,1748777460057,-358.77,0.000221,7]
[363589193,1748777460067,-4092.81,0.000221,2]
[363589194,1748777460078,-35915.15,0.000221,2]
[363589195,1748777460089,-151.0,0.000221,7]
[363589196,1748777460098,-330.847077,0.000221,2]
[363589197,1748777460108,-330.847077,0.000221,2]
[363589198,1748777460118,-2917.9954964,0.00022113,2]
[363589199,1748777460129,-500.0,0.00022156,2]
[363589200,1748777460139,-258.892066,0.00022191,7]
[363589201,1748777460150,-151.0,0.00022191,7]
[363589202,1748777460161,-151.0,0.00022191,7]
[363589203,1748777460171,-1240.01,0.00022191,2]
[363589204,1748777460181,-492.83,0.00022191,2]
[363589205,1748777460191,-3331.44,0.00022191,2]
[363589206,1748777460202,-2976.59,0.00022191,2]
[363589207,1748777460212,-564.38,0.00022191,2]
[363589208,1748777460223,-1884.21,0.00022191,2]
[363589209,1748777460233,-1092.73,0.00022191,2]
[363589210,1748777460243,-2299.95,0.00022191,2]
[363589211,1748777460253,-722.57,0.00022191,2]
[363589212,1748777460263,-1226.7,0.00022191,2]
[363589213,1748777460274,-2672.42,0.00022191,2]
[363589214,1748777460287,-806.49,0.00022191,2]
[363589215,1748777460297,-445.77275813,0.00022191,2]
[363589216,1748777460307,-390.6,0.00022191,2]
[363589217,1748777460317,-457.31,0.00022191,2]
[363589218,1748777460327,-478.3,0.00022191,2]
[363589219,1748777460337,-1252.18,0.00022191,2]
[363589220,1748777460348,-748.12,0.00022191,2]
[363589221,1748777460358,-1768.34,0.00022191,2]
[363589222,1748777460369,-2721.71,0.00022191,2]
[363589223,1748777460378,-476.87,0.00022191,2]
[363589224,1748777460388,-430.0,0.00022191,2]
[363589225,1748777460398,-548.26,0.00022191,2]
[363589226,1748777460408,-557.94,0.00022191,2]
[363589227,1748777460418,-1242.67,0.00022191,2]
[363589228,1748777460427,-444.76,0.00022191,2]
[363589229,1748777460437,-492.01,0.00022191,2]
[363589230,1748777460447,-2451.33,0.00022191,2]
[363589231,1748777460457,-555.41,0.00022191,2]
[363589232,1748777460466,-2910.97,0.00022191,2]
[363589233,1748777460477,-1667.84722348,0.00022245,6]
[363589234,1748777460486,-153.0,0.00022274,2]
[363589235,1748777460496,-153.0,0.00022274,2]
[363589236,1748777460505,-2917.9954964,0.00022326,2]
[363589237,1748777460514,-1667.84722348,0.00022452,7]
[363589238,1748777460523,-540.92288429,0.00022465,2]
[363589239,1748777460535,-1240.01,0.00022465,2]
[363589240,1748777460545,-492.83,0.00022465,2]
[363589241,1748777460556,-3331.44,0.00022465,2]
[363589242,1748777460565,-2976.59,0.00022465,2]
[363589243,1748777460575,-564.38,0.00022465,2]
[363589244,1748777460585,-1884.21,0.00022465,2]
[363589245,1748777460595,-1092.73,0.00022465,2]
[363589246,1748777460605,-2299.95,0.00022465,2]
[363589247,1748777460616,-722.57,0.00022465,2]
[363589248,1748777460627,-1226.7,0.00022465,2]
[363589249,1748777460637,-2672.42,0.00022465,2]
[363589250,1748777460647,-806.49,0.00022465,2]
[363589251,1748777460658,-457.31,0.00022465,2]
[363589252,1748777460667,-478.3,0.00022465,2]
[363589253,1748777460677,-1252.18,0.00022465,2]
[363589254,1748777460687,-748.12,0.00022465,2]
[363589255,1748777460698,-1768.34,0.00022465,2]
[363589256,1748777460707,-2721.71,0.00022465,2]
[363589257,1748777460717,-476.87,0.00022465,2]
[363589258,1748777460727,-323.22,0.00022465,2]
[363589259,1748777460738,-548.26,0.00022465,2]
[363589260,1748777460748,-557.94,0.00022465,2]
[363589261,1748777460758,-1242.67,0.00022465,2]
[363589262,1748777460768,-444.76,0.00022465,2]
[363589263,1748777460779,-492.01,0.00022465,2]
[363589264,1748777460788,-2451.33,0.00022465,2]
[363589265,1748777460798,-555.41,0.00022465,2]
[363589266,1748777460809,-2910.97,0.00022465,2]
[363589267,1748777460818,-153.106816,0.00022467,7]
[363589268,1748777460828,-151.0,0.00022467,7]
[363589269,1748777460838,-151.0,0.00022467,7]
[363589270,1748777460849,-151.0,0.00022467,7]
[363589271,1748777460860,-151.0,0.00022467,7]
[363589272,1748777460870,-151.0,0.00022467,7]
[363589273,1748777460881,-237.780402,0.00022467,7]
[363589274,1748777460891,-433.191824,0.00022467,7]
[363589275,1748777460904,-433.191824,0.00022467,7]
[363589276,1748777460913,-151.0,0.00022467,7]
[363589277,1748777460923,-151.0,0.00022467,7]
[363589278,1748777460933,-151.0,0.00022467,7]
[363589279,1748777460943,-207.4,0.00022467,2]
[363589280,1748777460954,-900.0,0.00022467,2]
[363589281,1748777460964,-900.0,0.00022467,2]
[363589282,1748777460974,-900.0,0.00022467,2]
[363589283,1748777460985,-900.0,0.00022467,2]
[363589284,1748777460994,-900.0,0.00022467,2]
[363589285,1748777461004,-900.0,0.00022467,2]
[363589286,1748777461013,-900.0,0.00022467,2]
[363589287,1748777461023,-900.0,0.00022467,2]
[363589288,1748777461032,-900.0,0.00022467,2]
[363589289,1748777461041,-900.0,0.00022467,2]
[363589290,1748777461051,-900.0,0.00022467,2]
[363589291,1748777461061,-900.0,0.00022467,2]
[363589292,1748777461070,-900.0,0.00022467,2]
[363589293,1748777461080,-900.0,0.00022467,2]
[363589294,1748777461161,-900.0,0.00022467,2]
[363589295,1748777461171,-207.10190885,0.00022467,2]
[363589296,1748777461181,-151.0,0.000225,9]
[363589297,1748777461191,-1471.1353111,0.000225,2]
[363589298,1748777461200,-250.0,0.00022521,2]
[363589299,1748777461209,-2917.9954964,0.00022539,2]
[363589300,1748777461219,-214.357085,0.00022603,2]
[363589301,1748777461229,-510.78,0.00022648,2]
[363589302,1748777461239,-1667.84722348,0.00022659,7]
[363589303,1748777461249,-1240.08,0.00022739,2]
[363589304,1748777461259,-492.84,0.00022739,2]
[363589305,1748777461269,-3331.55,0.00022739,2]
[363589306,1748777461279,-2976.67,0.00022739,2]
[363589307,1748777461289,-564.51,0.00022739,2]
[363589308,1748777461298,-1884.31,0.00022739,2]
[363589309,1748777461308,-1092.85,0.00022739,2]
[363589310,1748777461318,-2300.1375438,0.00022739,2]
[363589311,1748777461329,-722.62,0.00022739,2]
[363589312,1748777461339,-1226.89333701,0.00022739,2]
[363589313,1748777461349,-2672.63553676,0.00022739,2]
[363589314,1748777461359,-806.60606015,0.00022739,2]
[363589315,1748777461369,-457.54,0.00022739,2]
[363589316,1748777461379,-478.52,0.00022739,2]
[363589317,1748777461389,-1252.26,0.00022739,2]
[363589318,1748777461399,-748.14,0.00022739,2]
[363589319,1748777461409,-1768.37982548,0.00022739,2]
[363589320,1748777461418,-2721.93359613,0.00022739,2]
[363589321,1748777461428,-477.1,0.00022739,2]
[363589322,1748777461438,-151.0,0.00022739,7]
[363589323,1748777461448,-548.34,0.00022739,2]
[363589324,1748777461458,-558.0,0.00022739,2]
[363589325,1748777461468,-1242.69174272,0.00022739,2]
[363589326,1748777461478,-444.94,0.00022739,2]
[363589327,1748777461488,-492.23,0.00022739,2]
[363589328,1748777461498,-2451.35,0.00022739,2]
[363589329,1748777461507,-555.4701321,0.00022739,2]
[363589330,1748777461518,-2911.09,0.00022739,2]
[363589331,1748777461528,-2917.9954964,0.00022752,2]
[363589332,1748777461544,-1667.84722348,0.00022866,8]
[363589333,1748777461560,-26907.82375122,0.00022869,2]
[363589334,1748777461569,-5000.0,0.00022958,2]
[363589335,1748777461579,-151.0,0.00022958,7]
[363589336,1748777461589,-151.0,0.00022958,7]
[363589337,1748777461599,-151.0,0.00022958,7]
[363589338,1748777461609,-151.0,0.00022958,7]
[363589339,1748777461619,-2917.9954964,0.00022965,2]
[363589340,1748777461630,-45109.22,0.00022977,6]
[363589341,1748777461640,-160.0,0.00023,3]
[363589342,1748777461651,-160.0,0.00023,3]
[363589343,1748777461662,-23954.9683003,0.00023,2]
[363589344,1748777462245,-629.2,0.00016438,2]
[363589345,1748777462255,-430.0,0.00016438,2]
[363589346,1748777462266,-629.2,0.00016712,2]
[363589347,1748777462276,-430.0,0.00016712,2]
[363589348,1748777462287,-629.2,0.00016986,2]
[363589349,1748777462297,-430.0,0.00016986,2]
[363589350,1748777462307,-629.2,0.0001726,2]
[363589351,1748777462550,-629.2,0.00017534,2]
[363589352,1748777462565,-629.2,0.00017808,2]
[363589353,1748777462574,-430.0,0.00018082,2]
[363589354,1748777462585,-629.2,0.00018082,2]
[363589355,1748777462595,-430.0,0.00018356,2]
[363589356,1748777462605,-629.2,0.00018356,2]
[363589357,1748777462614,-409.55664954,0.0001863,2]
[363589358,1748777462624,-629.2,0.0001863,2]
[363589359,1748777462634,-629.2,0.00018904,2]
[363589360,1748777462643,-629.2,0.00019178,2]
[363589361,1748777462654,-629.2,0.00019452,2]
[363589362,1748777462664,-151.0,0.00019726,2]
[363589363,1748777462673,-629.2,0.00019726,2]
[363589364,1748777462683,-878.25,0.0002,2]
[363589365,1748777462693,-629.2,0.0002,2]
[363589366,1748777462703,-878.25,0.00020273,2]
[363589367,1748777462712,-629.2,0.00020273,2]
[363589368,1748777462723,-878.25,0.00020547,2]
[363589369,1748777462733,-629.2,0.00020547,2]
[363589370,1748777462743,-878.25,0.00020821,2]
[363589371,1748777462753,-629.2,0.00020821,2]
[363589372,1748777462762,-878.25,0.00021095,2]
[363589373,1748777462773,-629.2,0.00021095,2]
[363589374,1748777462783,-878.25,0.00021369,2]
[363589375,1748777462793,-151.0,0.00021369,2]
[363589376,1748777462802,-629.2,0.00021369,2]
[363589377,1748777462812,-878.25,0.00021643,2]
[363589378,1748777462821,-629.2,0.00021643,2]
[363589379,1748777462831,-878.25,0.00021917,2]
[363589380,1748777462841,-629.2,0.00021917,2]
[363589381,1748777462851,-878.25,0.00022191,2]
[363589382,1748777462859,-151.0,0.00022191,7]
[363589383,1748777462868,-878.25,0.00022465,2]
[363589384,1748777462877,-878.31,0.00022739,2]
[363589385,1748777462886,-2844.03433669,0.00023,2]
[363589386,1748777462895,-423.51412927,0.00023,3]
[363589387,1748777462904,-188005.57299744,0.00023,3]
[363589388,1748777462915,-842.5625,0.00023,3]
[363589389,1748777462924,-151.0,0.00023,7]
[363589390,1748777462933,-167.0,0.00023014,7]
[363589391,1748777462943,-166.0,0.00023014,7]
[363589392,1748777462953,-350.0,0.00023068,2]
[363589393,1748777462962,-30391.77,0.0002307,6]
[363589394,1748777462972,-122938.48,0.0002307,6]
[363589395,1748777462981,-1667.84722348,0.00023072,8]
[363589396,1748777462991,-16642.93369728,0.000231,3]
[363589397,1748777463001,-129105.55369143,0.000231,2]
[363589398,1748777463011,-140873.59,0.000231,7]
[363589399,1748777463020,-151.0,0.000231,7]
[363589400,1748777463030,-2917.9954964,0.00023178,2]
[363589401,1748777463041,-151.0,0.000232,7]
[363589402,1748777463051,-622.64,0.000232,7]
[363589403,1748777463062,-1654.05,0.000232,7]
[363589404,1748777463073,-405.0,0.00023277,2]
[363589405,1748777463082,-1667.84722348,0.00023279,8]
[363589406,1748777463092,-358.77,0.000233,7]
[363589407,1748777463102,-35915.15,0.000233,2]
[363589408,1748777463111,-151.0,0.000233,7]
[363589409,1748777463121,-151.0,0.000233,7]
[363589410,1748777463132,-151.0,0.000233,7]
[363589411,1748777463142,-151.0,0.000233,7]
[363589412,1748777463153,-151.0,0.000233,7]
[363589413,1748777463163,-151.0,0.000233,7]
[363589414,1748777463173,-151.0,0.000233,7]
[363589415,1748777463183,-151.0,0.000233,7]
[363589416,1748777463193,-2001.99115694,0.000233,2]
[363589417,1748777463203,-330.847077,0.000233,2]
[363589418,1748777463213,-330.847077,0.000233,2]
[363589419,1748777463223,-151.0,0.000233,7]
[363589420,1748777463232,-1285.102013,0.00023324,3]
[363589421,1748777463242,-9859.40490574,0.00023332,2]
[363589422,1748777463252,-5000.0,0.00023332,2]
[363589423,1748777463262,-5000.0,0.00023332,2]
[363589424,1748777463272,-5000.0,0.00023332,2]
[363589425,1748777463282,-5000.0,0.00023332,2]
[363589426,1748777463291,-155.6687316,0.00023342,2]
[363589427,1748777463301,-2917.9954964,0.00023391,2]
[363589428,1748777463311,-4092.81,0.000234,2]
[363589429,1748777463321,-160.0,0.000234,3]
[363589430,1748777463331,-1667.84722348,0.00023486,9]
[363589431,1748777463340,-3695.69825899,0.00023562,2]
[363589432,1748777463350,-5000.0,0.00023563,30]
[363589433,1748777463359,-5000.0,0.00023563,30]
[363589434,1748777463369,-5000.0,0.00023563,30]
[363589435,1748777463379,-5000.0,0.00023563,30]
[363589436,1748777463389,-5000.0,0.00023563,30]
[363589437,1748777463399,-5000.0,0.00023563,30]
[363589438,1748777463411,-5000.0,0.00023563,30]
[363589439,1748777463420,-5000.0,0.00023563,30]
[363589440,1748777463430,-5000.0,0.00023563,30]
[363589441,1748777463440,-5000.0,0.00023563,30]
[363589442,1748777463450,-5000.0,0.00023563,30]
[363589443,1748777463460,-5000.0,0.00023563,30]
[363589444,1748777463470,-5000.0,0.00023563,30]
[363589445,1748777463480,-5000.0,0.00023563,30]
[363589446,1748777463491,-5000.0,0.00023563,30]
[363589447,1748777463500,-5000.0,0.00023563,30]
[363589448,1748777463512,-5000.0,0.00023563,30]
[363589449,1748777463522,-5000.0,0.00023563,30]
[363589450,1748777463536,-5000.0,0.00023563,30]
[363589451,1748777463548,-5000.0,0.00023563,30]
[363589452,1748777463560,-5000.0,0.00023563,30]
[363589453,1748777463572,-5000.0,0.00023563,30]
[363589454,1748777463585,-1019.5,0.00023563,30]
[363589455,1748777463596,-2917.9954964,0.00023604,2]
[363589456,1748777463606,-450.0,0.00023616,2]
[363589457,1748777463618,-159.402966,0.00023632,3]
[363589458,1748777463629,-175.527556,0.00023632,3]
[363589459,1748777463638,-151.0,0.00023681,7]
[363589460,1748777463648,-151.0,0.00023681,7]
[363589461,1748777463658,-151.0,0.00023681,7]
[363589462,1748777463668,-291.423366,0.00023681,7]
[363589463,1748777463679,-151.0,0.00023681,7]
[363589464,1748777463689,-151.0,0.00023681,7]
[363589465,1748777463699,-151.0,0.00023681,7]
[363589466,1748777463710,-151.0,0.00023681,7]
[363589467,1748777463720,-267.006488,0.00023681,7]
[363589468,1748777463731,-433.191824,0.00023681,7]
[363589469,1748777463741,-433.191824,0.00023681,7]
[363589470,1748777463751,-151.0,0.00023681,7]
[363589471,1748777463761,-151.0,0.00023681,7]
[363589472,1748777463771,-151.0,0.00023681,7]
[363589473,1748777463780,-151.0,0.0002369,7]
[363589474,1748777463790,-151.0,0.0002369,7]
[363589475,1748777463799,-151.0,0.0002369,7]
[363589476,1748777463810,-151.0,0.0002369,7]
[363589477,1748777463819,-1667.84722348,0.00023693,9]
[363589478,1748777463829,-2000.0,0.000237,2]
[363589479,1748777463839,-152.99,0.000237,31]
[363589480,1748777463848,-152.99,0.000237,31]
[363589481,1748777463858,-152.99,0.000237,31]
[363589482,1748777463868,-152.99,0.000237,31]
[363589483,1748777463878,-152.99,0.000237,31]
[363589484,1748777463888,-152.99,0.000237,31]
[363589485,1748777463898,-152.99,0.000237,31]
[363589486,1748777463909,-152.99,0.000237,31]
[363589487,1748777463919,-152.99,0.000237,31]
[363589488,1748777463929,-152.99,0.000237,31]
[363589489,1748777463939,-152.99,0.000237,31]
[363589490,1748777463948,-152.99,0.000237,31]
[363589491,1748777463958,-152.99,0.000237,31]
[363589492,1748777463968,-152.99,0.000237,31]
[363589493,1748777463979,-152.99,0.000237,31]
[363589494,1748777463989,-12666.87825251,0.000237,30]
[363589495,1748777463999,-229.3709046,0.000237,3]
[363589496,1748777464011,-842.5625,0.000237,30]
[363589497,1748777464021,-1021.56,0.00023726,2]
[363589498,1748777464031,-394.18,0.00023746,10]
[363589499,1748777464041,-259.80650372,0.00023773,2]
[363589500,1748777464051,-499.08564506,0.00023773,2]
[363589501,1748777464061,-201.0,0.0002379,9]
[363589502,1748777464071,-500.85666673,0.0002379,9]
[363589503,1748777464081,-500.0,0.0002379,9]
[363589504,1748777464091,-151.0,0.00023799,7]